[Event "Polish University-ch Women 2024"]
[Site "Lublin"]
[Date "2024.02.24"]
[Round "9.7"]
[White "Marczuk, Anna"]
[Black "Parol, Pola"]
[Result "1/2-1/2"]
[ECO "B76"]
[WhiteElo "1982"]
[BlackElo "2030"]
[Annotator "NA RC"]
[PlyCount "67"]
[EventDate "2024.02.22"]
[EventType "swiss"]
[EventCountry "POL"]
[SourceTitle "playchess.com"]
[Source "ChessBase"]
[SourceQuality "1"]
[TimeControl "600+3"]

1. e4 {[%emt 0:00:04]} c5 {[%emt 0:00:01]} 2. Nf3 {[%emt 0:00:02]} d6 {[%emt 0:00:01]} 3. d4 {[%emt 0:00:03]} cxd4 {[%emt 0:00:01]} 4. Nxd4 {[%emt 0:00:02]} Nf6 {[%emt 0:00:02]} 5. Nc3 {[%emt 0:00:02]} a6 {[%emt 0:00:01]} 6. Nb3 {[%emt 0:00:19]} g6 {[%emt 0:00:15]} 7. f3 {[%emt 0:00:50]} Bg7 {[%emt 0:00:03]} 8. Be3 {[%emt 0:00:02]} O-O {[%emt 0:00:29]} 9. Qd2 {[%emt 0:00:16]} Nc6 {[%emt 0:01:11]} 10. O-O-O {[%emt 0:00:57]} b5 {[%emt 0:00:45]} 11. Bh6 {[%emt 0:00:44]} Ne5 {[%emt 0:00:59]} 12. h4 {[%emt 0:01:38]} b4 {[%emt 0:00:43]} 13. Nd5 {[%emt 0:00:25]} Nxd5 {[%emt 0:00:01]} 14. exd5 {[%emt 0:00:02]} Bf5 {[%emt 0:00:58]} 15. Bxg7 {[%emt 0:02:32]} Kxg7 {[%emt 0:00:02]} 16. Nd4 {[%emt 0:00:17]} Qc8 {[%emt 0:02:51]} 17. h5 {[%emt 0:00:48]} Rh8 {[%emt 0:00:19]} 18. hxg6 {[%emt 0:00:33]} hxg6 {[%emt 0:00:04]} 19. Rxh8 {[%emt 0:00:06]} Qxh8 {[%emt 0:00:24]} 20. Nxf5+ {[%emt 0:00:03]} gxf5 {[%emt 0:00:01]} 21. Qg5+ {[%emt 0:00:02]} Ng6 {[%emt 0:00:01]} 22. Qxf5 {[%emt 0:00:04]} a5 {[%emt 0:00:19]} 23. Bd3 {[%emt 0:00:02]} Qh2 {[%emt 0:00:19]} 24. Qg4 {[%emt 0:00:10]} Qf4+ {[%emt 0:00:27]} 25. Qxf4 {[%emt 0:00:06]} Nxf4 {[%emt 0:00:01]} 26. Be4 {[%emt 0:00:07]} Kf6 {[%emt 0:00:05]} 27. g4 {[%emt 0:00:20]} Rh8 {[%emt 0:00:03]} 28. c3 {[%emt 0:00:03]} Rc8 {[%emt 0:00:08]} 29. Kc2 {[%emt 0:00:04]} Ng2 {[%emt 0:00:12]} 30. Rh1 {[%emt 0:00:08]} Ne3+ {[%emt 0:00:15]} 31. Kd3 {[%emt 0:00:01]} Nc4 {[%emt 0:00:04]} 32. Kc2 {[%emt 0:00:09]} Ne3+ {[%emt 0:00:10]} 33. Kd3 {[%emt 0:00:28]} Nc4 {[%emt 0:00:02]} 34. Kc2 {[%emt 0:00:01]} 1/2-1/2

[Event "Polish University-ch Women 2024"]
[Site "Lublin"]
[Date "2024.02.24"]
[Round "9.8"]
[White "Furtak, Joanna"]
[Black "Dmochowska, Agnieszka"]
[Result "0-1"]
[ECO "B30"]
[WhiteElo "1883"]
[BlackElo "2001"]
[Annotator "NA RC"]
[PlyCount "87"]
[EventDate "2024.02.22"]
[EventType "swiss"]
[EventCountry "POL"]
[SourceTitle "playchess.com"]
[Source "ChessBase"]
[SourceQuality "1"]
[TimeControl "600+3"]

1. e4 {[%emt 0:00:02]} c5 {[%emt 0:00:01]} 2. Nf3 {[%emt 0:00:02]} Nc6 {[%emt 0:00:01]} 3. Nc3 {[%emt 0:00:02]} e5 {[%emt 0:00:33]} 4. Bc4 {[%emt 0:00:16]} Be7 {[%emt 0:00:04]} 5. a3 {[%emt 0:00:08]} Nf6 {[%emt 0:00:02]} 6. d3 {[%emt 0:00:04]} O-O {[%emt 0:00:02]} 7. O-O {[%emt 0:00:02]} d6 {[%emt 0:00:02]} 8. h3 {[%emt 0:00:08]} Be6 {[%emt 0:00:08]} 9. Be3 {[%emt 0:00:17]} a6 {[%emt 0:00:33]} 10. Ng5 {[%emt 0:00:41]} d5 {[%emt 0:01:09]} 11. exd5 {[%emt 0:00:51]} Bxd5 {[%emt 0:00:10]} 12. Nxd5 {[%emt 0:02:22]} Nxd5 {[%emt 0:00:02]} 13. Qh5 {[%emt 0:01:57]} Bxg5 {[%emt 0:01:05]} 14. Bxg5 {[%emt 0:01:09]} f6 {[%emt 0:00:07]} 15. Be3 {[%emt 0:00:42]} Kh8 {[%emt 0:00:02]} 16. Bxc5 {[%emt 0:00:11]} Re8 {[%emt 0:00:05]} 17. Qf3 {[%emt 0:00:42]} Nf4 {[%emt 0:00:26]} 18. Be3 {[%emt 0:00:05]} Ne6 {[%emt 0:00:22]} 19. Bxe6 {[%emt 0:00:27]} Rxe6 {[%emt 0:00:01]} 20. Rfe1 {[%emt 0:00:01]} Rc8 {[%emt 0:00:04]} 21. Rad1 {[%emt 0:00:10]} Rd6 {[%emt 0:00:09]} 22. Qg4 {[%emt 0:00:25]} Nd4 {[%emt 0:00:21]} 23. Bxd4 {[%emt 0:00:12]} Rxd4 {[%emt 0:00:01]} 24. Qe2 {[%emt 0:00:02]} Qb6 {[%emt 0:00:01]} 25. c3 {[%emt 0:00:04]} Rdd8 {[%emt 0:00:06]} 26. Rd2 {[%emt 0:00:10]} h6 {[%emt 0:00:14]} 27. Red1 {[%emt 0:00:01]} Re8 {[%emt 0:00:05]} 28. Qe3 {[%emt 0:00:03]} Qb3 {[%emt 0:00:05]} 29. Qe4 {[%emt 0:00:05]} Rcd8 {[%emt 0:00:04]} 30. Qc4 {[%emt 0:00:05]} Qb6 {[%emt 0:00:02]} 31. d4 {[%emt 0:00:04]} exd4 {[%emt 0:00:04]} 32. cxd4 {[%emt 0:00:04]} Rc8 {[%emt 0:00:03]} 33. Qd3 {[%emt 0:00:02]} Qd6 {[%emt 0:00:05]} 34. d5 {[%emt 0:00:03]} Rc5 {[%emt 0:00:07]} 35. g3 {[%emt 0:00:04]} Re5 {[%emt 0:00:03]} 36. Qf3 {[%emt 0:00:03]} a5 {[%emt 0:00:05]} 37. Kg2 {[%emt 0:00:03]} b6 {[%emt 0:00:01]} 38. h4 {[%emt 0:00:01]} Rb5 {[%emt 0:00:10]} 39. Kh2 {[%emt 0:00:06]} Rc5 {[%emt 0:00:01]} 40. Kg2 {[%emt 0:00:01]} Re7 {[%emt 0:00:08]} 41. h5 {[%emt 0:00:03]} Re5 {[%emt 0:00:01]} 42. g4 {[%emt 0:00:03]} Rg5 {[%emt 0:00:00]} 43. Kh3 {[%emt 0:00:03]} Qd7 {[%emt 0:00:14]} 44. Re2 {[%emt 0:00:09]} 0-1

[Event "Polish University-ch Women 2024"]
[Site "Lublin"]
[Date "2024.02.24"]
[Round "9.9"]
[White "Michalak, Wiktoria"]
[Black "Trybowska, Barbara"]
[Result "0-1"]
[ECO "A09"]
[WhiteElo "1522"]
[BlackElo "1859"]
[Annotator "NA RC"]
[PlyCount "96"]
[EventDate "2024.02.22"]
[EventType "swiss"]
[EventCountry "POL"]
[SourceTitle "playchess.com"]
[Source "ChessBase"]
[SourceQuality "1"]
[TimeControl "600+3"]

1. Nf3 {[%emt 0:00:01]} d5 {[%emt 0:00:01]} 2. c4 {[%emt 0:00:01]} d4 {[%emt 0:00:04]} 3. d3 {[%emt 0:10:10]} c5 {[%emt 0:00:02]} 4. e3 {[%emt 0:00:00]} Nc6 {[%emt 0:00:02]} 5. exd4 {[%emt 0:00:00]} cxd4 {[%emt 0:00:01]} 6. Bf4 {[%emt 0:00:00]} g6 {[%emt 0:00:11]} 7. Nbd2 {[%emt 0:00:00]} Bg7 {[%emt 0:00:04]} 8. Be2 {[%emt 0:00:00]} Nf6 {[%emt 0:00:06]} 9. Nb3 {[%emt 0:00:00]} Nh5 {[%emt 0:00:14]} 10. Bg3 {[%emt 0:00:00]} Nxg3 {[%emt 0:00:03]} 11. hxg3 {[%emt 0:00:00]} a5 {[%emt 0:00:16]} 12. Qd2 {[%emt 0:00:00]} h5 {[%emt 0:00:49]} 13. a3 {[%emt 0:00:00]} a4 {[%emt 0:01:27]} 14. Nc5 {[%emt 0:00:00]} Bh6 {[%emt 0:01:59]} 15. Qc2 {[%emt 0:00:00]} Qa5+ {[%emt 0:00:05]} 16. Nd2 {[%emt 0:00:00]} Qxc5 {[%emt 0:00:07]} 17. Ne4 {[%emt 0:00:00]} Qa5+ {[%emt 0:00:09]} 18. Kf1 {[%emt 0:00:00]} f5 {[%emt 0:00:15]} 19. Bxh5 {[%emt 0:00:00]} gxh5 {[%emt 0:02:27]} 20. Rxh5 {[%emt 0:00:00]} Be6 {[%emt 0:00:47]} 21. Qe2 {[%emt 0:00:00]} O-O-O {[%emt 0:00:05]} 22. Nc5 {[%emt 0:00:00]} Bf7 {[%emt 0:00:10]} 23. Rxf5 {[%emt 0:00:00]} Bg5 {[%emt 0:00:38]} 24. Kg1 {[%emt 0:00:00]} Bf6 {[%emt 0:00:02]} 25. Qg4 {[%emt 0:00:00]} Rhg8 {[%emt 0:00:24]} 26. Rg5+ {[%emt 0:00:00]} Kb8 {[%emt 0:00:06]} 27. Nd7+ {[%emt 0:00:00]} Rxd7 {[%emt 0:00:02]} 28. Rxg8+ {[%emt 0:00:00]} Bxg8 {[%emt 0:00:04]} 29. Qxg8+ {[%emt 0:00:00]} Qd8 {[%emt 0:00:02]} 30. Qe6 {[%emt 0:00:00]} Rd6 {[%emt 0:00:03]} 31. Qe4 {[%emt 0:00:00]} Qd7 {[%emt 0:00:13]} 32. b4 {[%emt 0:00:00]} Re6 {[%emt 0:00:03]} 33. Qf4+ {[%emt 0:00:00]} Be5 {[%emt 0:00:03]} 34. Qf8+ {[%emt 0:00:00]} Qd8 {[%emt 0:00:03]} 35. Qf5 {[%emt 0:00:00]} Rf6 {[%emt 0:00:03]} 36. Qe4 {[%emt 0:00:00]} Bc7 {[%emt 0:00:15]} 37. f4 {[%emt 0:00:00]} e5 {[%emt 0:00:03]} 38. f5 {[%emt 0:00:00]} Qg8 {[%emt 0:00:05]} 39. g4 {[%emt 0:00:00]} Qg5 {[%emt 0:00:02]} 40. Qd5 {[%emt 0:00:06]} Qe3+ {[%emt 0:00:03]} 41. Kf1 {[%emt 0:00:10]} Qxd3+ {[%emt 0:00:01]} 42. Kg1 {[%emt 0:00:07]} Qe3+ {[%emt 0:00:02]} 43. Kf1 {[%emt 0:00:07]} Rh6 {[%emt 0:00:02]} 44. g3 {[%emt 0:00:09]} Qd3+ {[%emt 0:00:03]} 45. Kg1 {[%emt 0:00:07]} Qxg3+ {[%emt 0:00:02]} 46. Kf1 {[%emt 0:00:02]} Qf4+ {[%emt 0:00:03]} 47. Ke1 {[%emt 0:00:08]} Qe3+ {[%emt 0:00:01]} 48. Kf1 {[%emt 0:00:03]} Rh2 {[%emt 0:00:04]} 0-1

[Event "Polish University-ch Women 2024"]
[Site "Lublin"]
[Date "2024.02.24"]
[Round "9.10"]
[White "Cieslak, Wiktoria"]
[Black "Dwilewicz, Agata"]
[Result "1-0"]
[ECO "C56"]
[WhiteElo "1868"]
[BlackElo "1764"]
[Annotator "NA RC"]
[PlyCount "135"]
[EventDate "2024.02.22"]
[EventType "swiss"]
[EventCountry "POL"]
[SourceTitle "playchess.com"]
[Source "ChessBase"]
[SourceQuality "1"]
[TimeControl "600+3"]

1. e4 {[%emt 0:00:01]} e5 {[%emt 0:00:01]} 2. Nf3 {[%emt 0:00:01]} Nc6 {[%emt 0:00:02]} 3. d4 {[%emt 0:00:01]} exd4 {[%emt 0:00:02]} 4. Bc4 {[%emt 0:00:01]} Nf6 {[%emt 0:00:06]} 5. e5 {[%emt 0:00:09]} d5 {[%emt 0:00:17]} 6. Bb5 {[%emt 0:00:07]} Ne4 {[%emt 0:00:02]} 7. Nxd4 {[%emt 0:00:04]} Bd7 {[%emt 0:00:02]} 8. Bxc6 {[%emt 0:00:05]} bxc6 {[%emt 0:00:03]} 9. O-O {[%emt 0:00:06]} Bc5 {[%emt 0:00:19]} 10. f3 {[%emt 0:00:02]} Ng5 {[%emt 0:00:08]} 11. Be3 {[%emt 0:00:02]} Bb6 {[%emt 0:00:50]} 12. f4 {[%emt 0:00:03]} Ne4 {[%emt 0:00:28]} 13. Nd2 {[%emt 0:00:02]} Nxd2 {[%emt 0:00:27]} 14. Qxd2 {[%emt 0:00:02]} O-O {[%emt 0:00:03]} 15. c3 {[%emt 0:00:09]} Qe7 {[%emt 0:00:15]} 16. a4 {[%emt 0:00:33]} a5 {[%emt 0:00:17]} 17. Rf3 {[%emt 0:00:12]} f6 {[%emt 0:00:53]} 18. exf6 {[%emt 0:00:19]} Qxf6 {[%emt 0:00:19]} 19. Rg3 {[%emt 0:00:37]} Kh8 {[%emt 0:00:15]} 20. b3 {[%emt 0:00:17]} Rae8 {[%emt 0:00:24]} 21. Rf1 {[%emt 0:00:09]} Qe7 {[%emt 0:01:04]} 22. h3 {[%emt 0:01:55]} Bf5 {[%emt 0:00:54]} 23. Bf2 {[%emt 0:00:32]} Qd6 {[%emt 0:00:23]} 24. Nf3 {[%emt 0:00:30]} Re4 {[%emt 0:00:32]} 25. Ne5 {[%emt 0:00:35]} Bxf2+ {[%emt 0:00:25]} 26. Rxf2 {[%emt 0:00:32]} c5 {[%emt 0:00:10]} 27. Re2 {[%emt 0:00:20]} Kg8 {[%emt 0:00:29]} 28. Re1 {[%emt 0:01:11]} Rxe1+ {[%emt 0:00:30]} 29. Qxe1 {[%emt 0:00:01]} Qb6 {[%emt 0:00:26]} 30. c4 {[%emt 0:00:18]} d4 {[%emt 0:00:17]} 31. Qe2 {[%emt 0:00:01]} Qd6 {[%emt 0:00:08]} 32. Qf3 {[%emt 0:00:36]} Rd8 {[%emt 0:00:28]} 33. Qh5 {[%emt 0:00:02]} Rf8 {[%emt 0:00:07]} 34. Qg5 {[%emt 0:00:02]} Qf6 {[%emt 0:00:15]} 35. Qh5 {[%emt 0:00:16]} Qe7 {[%emt 0:00:07]} 36. Qd1 {[%emt 0:00:28]} Qd6 {[%emt 0:00:03]} 37. Qd2 {[%emt 0:00:01]} Qb6 {[%emt 0:00:05]} 38. Rf3 {[%emt 0:00:16]} Re8 {[%emt 0:00:06]} 39. g4 {[%emt 0:00:09]} Be4 {[%emt 0:00:01]} 40. Rg3 {[%emt 0:00:00]} Qb4 {[%emt 0:00:08]} 41. Qe2 {[%emt 0:00:19]} Qb7 {[%emt 0:00:06]} 42. Qd2 {[%emt 0:00:11]} Re7 {[%emt 0:00:04]} 43. Qxa5 {[%emt 0:00:06]} Qb6 {[%emt 0:00:03]} 44. Qxb6 {[%emt 0:00:09]} cxb6 {[%emt 0:00:01]} 45. Kf2 {[%emt 0:00:00]} Kf8 {[%emt 0:00:03]} 46. Ke2 {[%emt 0:00:04]} Bc2 {[%emt 0:00:05]} 47. Kd2 {[%emt 0:00:01]} Be4 {[%emt 0:00:02]} 48. Rg1 {[%emt 0:00:04]} g6 {[%emt 0:00:02]} 49. Re1 {[%emt 0:00:01]} Bg2 {[%emt 0:00:02]} 50. h4 {[%emt 0:00:02]} Ke8 {[%emt 0:00:07]} 51. h5 {[%emt 0:00:13]} gxh5 {[%emt 0:00:10]} 52. gxh5 {[%emt 0:00:01]} Bh3 {[%emt 0:00:00]} 53. Rg1 {[%emt 0:00:03]} Kf8 {[%emt 0:00:00]} 54. Rg3 {[%emt 0:00:06]} Bf5 {[%emt 0:00:00]} 55. Rg5 {[%emt 0:00:01]} Be4 {[%emt 0:00:04]} 56. Ng4 {[%emt 0:00:14]} h6 {[%emt 0:00:05]} 57. Nxh6 {[%emt 0:00:05]} Rd7 {[%emt 0:00:04]} 58. Rg8+ {[%emt 0:00:04]} Ke7 {[%emt 0:00:02]} 59. Rg7+ {[%emt 0:00:03]} Ke8 {[%emt 0:00:02]} 60. Rg5 {[%emt 0:00:14]} Bh7 {[%emt 0:00:03]} 61. Re5+ {[%emt 0:00:03]} Kf8 {[%emt 0:00:01]} 62. Ng4 {[%emt 0:00:02]} Kf7 {[%emt 0:00:02]} 63. Rg5 {[%emt 0:00:05]} Rd6 {[%emt 0:00:04]} 64. h6 {[%emt 0:00:01]} Rg6 {[%emt 0:00:05]} 65. Ne5+ {[%emt 0:00:01]} Kf6 {[%emt 0:00:01]} 66. Nxg6 {[%emt 0:00:02]} Bxg6 {[%emt 0:00:02]} 67. Rd5 {[%emt 0:00:02]} Be4 {[%emt 0:00:03]} 68. Rd6+ {[%emt 0:00:01]} 1-0